Cogmind - Beta 11.2 @@@ ROGUE MODE // 2022.12.23 @ 23:51:23 // Winter2022/Polymind Player: Terminus Result: Destroyed by S-10 Pest with Light Assault Rifle Performance ------------- Evolutions (0) 0 Regions Visited (2) 400 Robots Destroyed (13) 65 Value Destroyed (426) 426 Prototype IDs (2) 40 Alien Tech Used (0) 0 Bonus (1465) 1465 TOTAL SCORE: 1766 Bonus ------- Polymind Skill 1430 Follower Combat Kills 35 Cogmind --------- Core Integrity 0/250 Matter 92/100 Energy 75/75 System Corruption 1% Temperature Cool (3) Movement Flying (37) Location -10/Mines Parts ------- > --- POWER (1) -------- Light Ion Engine > --- PROPULSION (2) --- Flight Unit Flight Unit > --- UTILITY (0) ------ (None) > --- WEAPON (1) ------- Light Assault Rifle > --- INVENTORY (0) ---- (None) Peak State ------------ > --- POWER ------------ Light Angular Momentum Engine > --- PROPULSION ------- Carbon-fiber Leg Carbon-fiber Leg > --- UTILITY ---------- Improved Heat Sink Improved Heat Sink > --- WEAPON ----------- Beamcaster > --- INVENTORY -------- (None) [Rating: 22] Favorites ----------- Power Light Angular Momentum Engine Engine Light Angular Momentum Engine Power Core Light Nuclear Core Propulsion Aluminum Leg Leg Aluminum Leg Wheel Compact Wheel Flight Unit Flight Unit Utility Improved Heat Sink Device Improved Heat Sink Storage Small Storage Unit Weapon Beamcaster Energy Gun Beamcaster Ballistic Gun Light Assault Rifle Build | -11 -10 -10 ------- Run | Scr Mat Min Slots Evolved . | . . . Power . | . . . Propulsion . | . . . Utility . | . . . Weapon . | . . . Parts Attached . | . . . Power . | . . . Engine . | . . . Core . | . . . Reactor . | . . . Propulsion . | . . . Treads . | . . . Leg . | . . . Wheel . | . . . Hover . | . . . Flight . | . . . Utility . | . . . Device . | . . . Storage . | . . . Processor . | . . . Hackware . | . . . Protection . | . . . Artifact . | . . . Weapon . | . . . Energy Gun . | . . . Energy Cannon . | . . . Ballistic Gun . | . . . Ballistic Cannon . | . . . Launcher . | . . . Special Weapon . | . . . Impact Weapon . | . . . Slashing Weapon . | . . . Piercing Weapon . | . . . Special Melee Weapon . | . . . Unidentified Prototypes . | . . . Parts Lost 2 | . 1 1 Power 1 | . 1 . Propulsion . | . . . Utility . | . . . Weapon 1 | . . 1 Highest Loss Streak 1 | . 1 1 To Critical Strikes . | . . . Average Slot Usage (%) 94 | . 93 97 Engine 11 | . 10 13 Core 4 | . 5 3 Leg 31 | . 30 32 Wheel 5 | . 8 . Device 23 | . 19 29 Storage 2 | . 4 . Energy Gun 15 | . 15 15 Naked Turns 23 | . 12 11 Heaviest Build 16 | 9 9 16 Greatest Support 32 | 32 32 30 Greatest Overweight (x) . | . . . Average Overweight (x) . | . . . Largest Inventory Capacity 4 | 4 4 1 Average Capacity 1 | 1 1 . Most Carried . | . . . Average Carried . | . . . Final Capacity 4 | 4 1 . Final Carried . | . . . Class Distribution -------------------- 83% | Grunt 13% | Recycler Dominant Class ---------------- Grunt | -10/Materials Grunt | -10/Mines Resources | -11 -10 -10 ----------- Run | Scr Mat Min Matter Collected . | . . . Remotely . | . . . Salvage Created 442 | . 308 134 Parts 32 | . 22 10 Haulers Intercepted . | . . . Recyclers Shooed 1 | . . 1 Parts Field Recycled . | . . . Retrieved Matter . | . . . Parts Self-Destructed . | . . . Prevented . | . . . Kills | -11 -10 -10 ------- Run | Scr Mat Min Combat Hostiles Destroyed 10 | . 8 2 Guns 10 | . 8 2 Classes Destroyed 4 | . 2 2 Recycler 1 | . . 1 Watcher 2 | . 2 . Grunt 8 | . 8 . Sentry 2 | . . 2 Best Kill Streak 3 | . 3 2 Combat Bots Only 2 | . 2 2 Max Kills in Single Turn 1 | . 1 1 Gunslinging . | . . . Exploded . | . . . Melee . | . . . Uniques/NPCs Destroyed . | . . . Combat | -11 -10 -10 -------- Run | Scr Mat Min Damage Taken 720 | . 455 265 Core 252 | . 146 106 Absorbed by Shields . | . . . Core Remaining (%) 100 | 100 . . Volleys Fired 67 | . 51 16 Largest 1 | . 1 1 Hottest 75 | . 65 75 Shots Fired 67 | . 51 16 Gun 67 | . 51 16 Cannon . | . . . Launcher . | . . . Special . | . . . Kinetic 5 | . . 5 Thermal 62 | . 51 11 Explosive . | . . . Electromagnetic . | . . . Robot Hit Streak 23 | . 23 7 Robot Miss Streak 2 | . 2 2 Penetration Max . | . . . Secondary Targets . | . . . Shots Hit Robots 57 | . 45 12 Core Hits 26 | . 22 4 Critical Kills . | . . . Critical Parts Destroyed . | . . . Critical Strikes 2 | . . 2 Burn 2 | . . 2 Melee Attacks . | . . . Impact . | . . . Slashing . | . . . Piercing . | . . . Sneak Attacks . | . . . Combat Hostiles . | . . . Follow-up Attacks . | . . . Damage Inflicted 749 | . 529 220 Guns 748 | . 528 220 Cannons . | . . . Explosions . | . . . Melee . | . . . Ramming 1 | . 1 . Kinetic 25 | . . 25 Thermal 723 | . 528 195 Explosive . | . . . Electromagnetic . | . . . Impact . | . . . Slashing . | . . . Piercing . | . . . Highest Corruption 1 | . 1 1 Average Corruption 1 | . 1 1 Corruption Purged . | . . . Corruption Blocked . | . . . Effects 1 | . 1 . Heat Flow Errors 1 | . 1 . Overload Shots . | . . . Overflow Damage . | . . . Projectiles . | . . . Explosions . | . . . Melee . | . . . Knockbacks . | . . . Impact . | . . . Kinetic . | . . . Secondary . | . . . Self-Inflicted Damage . | . . . Shots . | . . . Rammed . | . . . Targets Rammed 1 | . 1 . Kicked 1 | . 1 . Crushed . | . . . Highest Temperature 86 | . 86 23 Average Temperature 18 | . 21 9 Received Heat Transfer 339 | . 267 72 Siege Activations . | . . . Robots Corrupted . | . . . Combat Hostiles . | . . . Parts Fried . | . . . Impact Corruptions . | . . . Robots Melted . | . . . Combat Hostiles . | . . . Parts Melted 1 | . 1 . Heat Transferred 1630 | . 1149 481 Parts Sabotaged . | . . . Parts Stolen . | . . . Parts Stripped . | . . . Power Chain Reactions . | . . . Missiles Intercepted . | . . . Alert | -11 -10 -10 ------- Run | Scr Mat Min Peak Influence 360 | . 360 185 Initial 87 | . . 87 Average 167 | . 205 114 Maximum Alert Level 1 | . 1 . Low Security (%) 60 | 100 34 100 Level 1 39 | . 65 . Level 2 . | . . . Level 3 . | . . . Level 4 . | . . . Level 5 . | . . . High Security . | . . . Max Security . | . . . Squads Dispatched 2 | . 2 . Investigation 1 | . 1 . Extermination . | . . . Reinforcement 1 | . 1 . Assault . | . . . Garrison . | . . . Intercept . | . . . Searches Triggered . | . . . Construction Impeded . | . . . Haulers Reinforced . | . . . Active Scanning Responses . | . . . Cargo Convoy Interrupts . | . . . Stealth | -11 -10 -10 --------- Run | Scr Mat Min Distress Signals . | . . . Communications Jammed . | . . . Distress Signals . | . . . Times Spotted 24 | . 16 8 Peak Tracking Total 5 | . 5 3 Tactical Retreats 2 | . 1 1 Traps | -11 -10 -10 ------- Run | Scr Mat Min Traps Triggered 1 | . 1 . Indirectly . | . . . Trap Hack Attempts . | . . . Triggered . | . . . Disarmed . | . . . Reprogrammed . | . . . Reused . | . . . Traps Extracted . | . . . Installed . | . . . Triggered . | . . . Machines | -11 -10 -10 ---------- Run | Scr Mat Min Machines Disabled 1 | . . 1 Max in Single Turn 1 | . . 1 Machines Sabotaged . | . . . Garrisons Compromised . | . . . Overloaded Fab Kills . | . . . Hacking | -11 -10 -10 --------- Run | Scr Mat Min Machines Accessed 6 | . 6 . Terminals 5 | . 5 . Fabricators . | . . . Repair Stations . | . . . Recycling Units 1 | . 1 . Scanalyzers . | . . . Garrison Access . | . . . Total Hacks 20 | . 20 . Successful 12 | . 12 . Failed 7 | . 7 . Catastrophic . | . . . Database Lockouts 1 | . 1 . Manual 13 | . 13 . Terminals 19 | . 19 . Fabricators . | . . . Repair Stations . | . . . Recycling Units 1 | . 1 . Scanalyzers . | . . . Garrison Access . | . . . Terminal Hacks 7 | . 7 . Robot Analysis 2 | . 2 . Prototype ID Bank 1 | . 1 . Branch Access Points 1 | . 1 . Terminal Index 1 | . 1 . Locate Traps 1 | . 1 . Zone Layout 1 | . 1 . Fabricator Hacks . | . . . Repair Station Hacks . | . . . Recycling Unit Hacks . | . . . Scanalyzer . | . . . Garrison Access Hacks . | . . . Unauthorized Hacks 5 | . 5 . Terminals 4 | . 4 . Botnet 4 | . 4 . Fabricators . | . . . Repair Stations . | . . . Recycling Units 1 | . 1 . Tunnel 1 | . 1 . Scanalyzers . | . . . Garrison Access . | . . . Data Cores Recovered . | . . . Used . | . . . Hacking Detections 4 | . 4 . Full Trace Events . | . . . Feedback Events . | . . . Feedback Blocked . | . . . Robot Schematics Acquired . | . . . Robots Built . | . . . Authchips . | . . . Time . | . . . Total Robot Build Rating . | . . . Part Schematics Acquired . | . . . Parts Built . | . . . Authchips . | . . . Time . | . . . Total Part Build Rating . | . . . Parts Repaired . | . . . Time . | . . . Parts Recycled . | . . . Recycled Matter . | . . . Retrieved Matter . | . . . Retrieved Components . | . . . Parts Scanalyzed . | . . . Part Schematics Acquired . | . . . Parts Damaged . | . . . Bothacking | -11 -10 -10 ------------ Run | Scr Mat Min Used RIF Installer . | . . . Robots Hacked 3 | . 2 1 Non-combat . | . . . Combat 3 | . 2 1 Robot Hacks Applied 3 | . 2 1 find_shortcuts 3 | . 2 1 Relay Couplers Released . | . . . Fabnet Peak Effective % . | . . . Robots Rewired . | . . . Allies Hacked . | . . . Hacks Repelled . | . . . Allies | -11 -10 -10 -------- Run | Scr Mat Min Total Allies 2 | . . 2 Largest Group 1 | . . 1 Highest-Rated Group 31 | . . 31 Highest-Rated Ally 31 | . . 31 Total Orders . | . . . Ally Attacks 5 | . . 5 Total Damage 64 | . . 64 Kills 1 | . . 1 Allies Corrupted . | . . . Allies Melted . | . . . Intel | -11 -10 -10 ------- Run | Scr Mat Min Robot Analysis Total 5 | 1 3 1 Derelict Logs Recovered 1 | . . 1 Drone Launches . | . . . Drone Recoveries . | . . . Exploration | -11 -10 -10 ------------- Run | Scr Mat Min Turns Passed 1023 | 14 612 397 Spaces Moved 718 | 23 407 288 Core 27 | 17 2 8 Treads . | . . . Legs 549 | . 271 278 Wheels 140 | 6 134 . Hover . | . . . Flight 2 | . . 2 Fastest Speed 37 | 50 50 37 Average Speed 113 | 63 113 117 Slowest Speed 120 | 100 120 120 Overloaded Moves . | . . . Propulsion Burnouts . | . . . Robots Hopped . | . . . Cave-ins Triggered . | . . . Exploration Rate (%) 42 | 4 61 63 Regions Visited 2 Branch Regions 1 Pre-discovered Areas 1 | . 1 . Known Exits Taken 1 | . 1 . Unknown Exits Taken 1 | 1 . . Scrap Searched 2 | . . 2 Spaces Dug . | . . . Terrain Destroyed . | . . . Melee . | . . . Projectile . | . . . AOE . | . . . Terrain Rammed . | . . . Walls Destroyed . | . . . Machines Disabled . | . . . Actions | -11 -10 -10 --------- Run | Scr Mat Min Total 860 | 22 507 331 Wait 76 | . 49 27 Move 716 | 22 406 288 Hop . | . . . Pick Up . | . . . Fast Attach . | . . . Attach . | . . . Detach . | . . . Swap . | . . . Drop . | . . . Fire 67 | . 51 16 Melee . | . . . Ram . | . . . Kick 1 | . 1 . Crush . | . . . Escape Stasis . | . . . Rewire . | . . . Trap . | . . . Miscellaneous . | . . . Route ------- -11/Scrapyard -10/Materials (discovered 3 exits: [*Mat] / *Min x2) -10/Mines History --------- Turn | Location | Event 3 | -11/Scrapyard | Discovered new exit (range 15) 15 | -11/Scrapyard | Entered Materials 88 | -10/Materials | Central database locked down 96 | -10/Materials | Discovered new exit (range 13) 262 | -10/Materials | Discovered new exit (range 14) 453 | -10/Materials | Core integrity fell below 50% 496 | -10/Materials | Identified exit to Mines 627 | -10/Materials | Entered Mines 636 | -10/Mines | Learned Materials security intel 695 | -10/Mines | Received a Mining Laser from a helpful Derelict 774 | -10/Mines | Received a Rocket Launcher from a helpful Derelict 960 | -10/Mines | Core integrity fell below 20% 1024 | -10/Mines | Destroyed by S-10 Pest with Light Assault Rifle Last Messages --------------- were you, so I'm going to lend you mine." 00774_ R4-XDW(g) slips back into the shadows. 00851_ K-01 Serf collects debris. 00852_ Searching scrap... 00852_ Found Lrg. Battery. 00852_ Found 13 Matter. 00852_ Found Lgt. Assault Rifle. 00852_ Found 28 Matter. 00857_ K-01 Serf collects debris. 00939_ Machine disabled. 00944_ Y-45 Defender suffers critical hit (Burn). 00950_ K-01 Serf collects debris. 00959_ Critical hit (Burn: +37). 00961_ Y-45 Defender destroyed. 00969_ Acquired 11 Protomatter. 00971_ R-06 Scavenger collects Heat Sink. 01012_ S-10 Pest suffers critical hit (Burn). 01014_ Beamcaster destroyed. 01014_ Released control of SU-TPH(g). 01014_ Took control of S-10 Pest. Map ----- +----------------------------------------------------+ | ??????????????????????????????????? | | ??????????????????????????????????? | | ??????????????????????????????????? | | ??????????????????????????????????? | | ??????????????????????????????????? | | ??????????????????????????????????? | | ??????????????????????????????????? | | ??????????????????????????????????? | | ??????????????????????????????????? | | ??????????????????????????????????? | | ????????????????????????? ???????? | | ????????????????????????? ???????? | | ????????????????????????? ???????? | | ????????????????????????# #??????? | | ????????????????????????# #??????? | | ????????????????????????# $#??????? | | ???????????????????????## ##?????? | | ??????????????????????? ??????? | | ??????????????????????? ??????? | | ???????????????????????? ??????? | | ???????????????????????? #??????? | | ????????????????????????#g #??????? | | ????????????????????????# #??????? | | ????????????????????????# #??????? | | ????????????????????????# s#??????? | | ????????????????????????#s #??????? | | ????????????????????????# #??????? | | ????????????????????????# s##?????? | | ????????????????????????# #?????? | | ????????????????????????## #?????? | | ?????????????????????????# #?????? | | ?????????????????????????# #?????? | | ????????????? ?????????# #?????? | | ????????????# ???????# #?????? | | #????????### ???????# #?????? | | ???????## ????????# #?????? | | ??????## #????????#u #####?? | | #??### #?????????# ##? | | ##?## #?????????## #? | | #?## #?????????# #? | | ?## #??????#### ##? | | ## #??????##" ## ##?? | | #????????# " # ###??? | | #?????????#]! + ##????? | | ### ##????????#!! + ##????? | | #????????#"" # #????? | | ### ##?########" ## #????? | | #####?## ### #####?## *#????? | | ???????# ##????# *#????? | | ???????# ####### #????? | +----------------------------------------------------+ Best States ------------- Heat Dissipation 48 Energy Generation 23 Energy Capacity 200 Matter Stores 94 Matter Capacity 100 Sight Range 16 Terrain Scan Density 10 Evasion (%) 55 Item Schematics ----------------- None Robot Schematics ------------------ None Fabricated ------------ Nothing Alien Tech Used ----------------- None Achievements -------------- None Challenges ------------ None Polymind | -11 -10 -10 ---------- Run | Scr Mat Min Robots Controlled 5 | 1 2 2 Combat Hostiles 3 | . 2 1 Allies 1 | . . 1 Classes Controlled 3 | 1 1 1 Average Host Suspicion 80 | . 92 63 Unsuspicious Activity 16 | 2 7 7 Returns to Shadow . | . . . Fuzzy Dispatches . | . . . Protomatter Created 85 | . 46 39 Used 70 | 5 45 20 Decayed 9 | . 9 . Highest Spend 30 | 5 30 14 Top 5 Hosts by Kills: G-34 Mercenary (-10/Materials: 7) Game ------ Seed PulseAlphaSuite Manual? 0 Play Time 00:08:20 Cumulative 1642.2 hours Start 2022.12.23 @ 23:45:20 End 2022.12.23 @ 23:51:23 Sessions 1 Manual Loads 0 Difficulty Rogue Special Mode Winter2022/Polymind Game No. 580 Rogue 580 Adventurer 0 Explorer 0 Win Type - Total 122 Types 26/13/51/7/1/2/20/1/1 Lore% 98 Gallery% 97 Achievement% 87 Wizard Run 0 Options --------- ASCII 0 Keyboard 0 Movement Numpad Keybinds 0 Fullscreen 1 Font 18/SmallcapsGlow Map View 76x50 Tactical HUD 1 Map Filters NONE Filters NONE Steam 1 RUN: 324dadf8-5de4-4393-ace7-169dadc5e966